bitfinex-derivatives/quotes_BTCF0:USTF0_20251115
["timestamp","ask_amount","ask_price","bid_price","bid_amount"]
[1763215142878,0.02313353,96396.0,96392.0,0.05634]
[1763215143388,0.02313353,96396.0,96392.0,0.01284]
[1763215143682,0.02313353,96396.0,96392.0,0.034]
[1763215144286,0.02313353,96396.0,96392.0,0.01284]
[1763215144882,0.3608,96395.0,96383.0,0.05649]
[1763215145080,0.3608,96384.0,96383.0,0.05649]
[1763215145285,0.38393353,96384.0,96383.0,0.05649]
[1763215147591,0.02313353,96384.0,96383.0,0.05649]
[1763215147786,0.3608,96395.0,96394.0,0.0435]
[1763215147991,0.38393446,96395.0,96394.0,0.0435]
[1763215151389,0.02313446,96395.0,96394.0,0.0435]
[1763215152890,0.3608,96405.0,96404.0,0.04283]
[1763215153191,0.38393093,96405.0,96404.0,0.04283]
[1763215156995,0.38393093,96405.0,96400.0,0.03722803]
[1763215157298,0.02313093,96404.0,96400.0,0.03503]
[1763215158196,0.02313093,96404.0,96392.0,0.05646]
[1763215158391,0.3608,96397.0,96392.0,0.05646]
[1763215158593,0.02313093,96396.0,96395.0,0.04362]
[1763215161402,0.02313093,96396.0,96392.0,0.05646]
[1763215161795,0.02313093,96396.0,96395.0,0.04362]
[1763215163301,0.3608,96397.0,96396.0,0.04362]
[1763215163494,0.38379795,96397.0,96392.0,0.03479]
[1763215163696,0.02299795,96396.0,96392.0,0.05646]
[1763215164102,0.00982,96384.0,96383.0,0.05661]
[1763215164300,0.00982,96382.0,96381.0,0.00015559]
[1763215164491,0.00982,96370.0,96369.0,0.0567]
[1763215166597,0.00015559,96379.0,96378.0,0.04362]
[1763215166802,0.03296058,96379.0,96378.0,0.04362]
[1763215169497,0.02314058,96379.0,96378.0,0.04362]
[1763215172199,0.02314058,96379.0,96378.0,0.40442]
[1763215172200,0.00015559,96379.0,96378.0,0.40442]
[1763215172499,0.3608,96392.0,96391.0,0.04497]
[1763215172811,0.38377048,96392.0,96391.0,0.04497]
[1763215173795,0.38884048,96392.0,96391.0,0.04497]
[1763215174097,0.39391048,96392.0,96391.0,0.04497]
[1763215175196,0.38884048,96392.0,96391.0,0.04497]
[1763215176400,0.38377048,96392.0,96391.0,0.04497]
[1763215176595,0.02297048,96392.0,96391.0,0.04497]
[1763215179698,0.36587,96400.0,96399.0,0.04497]
[1763215179904,0.38376945,96400.0,96399.0,0.04497]
[1763215180812,0.38883945,96400.0,96399.0,0.04497]
[1763215181607,0.39390945,96400.0,96399.0,0.04497]
[1763215181808,0.38376945,96400.0,96399.0,0.04497]
[1763215182802,0.02296945,96400.0,96399.0,0.04497]
[1763215189408,0.00025932,96406.0,96405.0,0.04497]
[1763215189811,0.02321808,96406.0,96405.0,0.04497]
[1763215191215,0.00025932,96406.0,96405.0,0.04497]
[1763215194318,0.3608,96428.0,96418.0,0.05776]
[1763215198519,0.3608,96428.0,96420.0,0.00219803]
[1763215198821,0.005,96436.0,96435.0,0.04491]
[1763215199017,0.01032,96436.0,96435.0,0.04491]
[1763215199221,0.03320065,96436.0,96435.0,0.04491]
[1763215199420,0.02788065,96436.0,96435.0,0.04491]
[1763215199630,0.03320065,96436.0,96435.0,0.04491]
[1763215200316,0.03852065,96436.0,96435.0,0.04491]
[1763215200512,0.01064,96426.0,96425.0,0.03673]
[1763215200712,0.00532,96426.0,96425.0,0.05833]
[1763215200929,0.01064,96434.0,96433.0,0.04491]
[1763215201227,0.03352123,96434.0,96433.0,0.04491]
[1763215201526,0.03352123,96434.0,96433.0,0.02331]
[1763215201823,0.01064,96426.0,96425.0,0.05833]
[1763215202026,0.01064,96419.0,96418.0,0.0577]
[1763215203332,0.01064,96419.0,96418.0,0.05148422]
[1763215204521,0.03352907,96419.0,96418.0,0.05148422]
[1763215205226,0.02308,96410.0,96404.0,0.01342]
[1763215205521,0.38388,96410.0,96404.0,0.01342]
[1763215205921,0.38388,96410.0,96409.0,0.02346559]
[1763215206123,0.38388,96410.0,96409.0,0.04506559]
[1763215206328,0.40677952,96410.0,96409.0,0.00015559]
[1763215207030,0.40677952,96410.0,96409.0,0.04506559]
[1763215207228,0.40677952,96410.0,96409.0,0.00015559]
[1763215210031,0.40677952,96410.0,96397.0,0.02331]
[1763215210032,0.02308,96398.0,96397.0,0.02331]
[1763215210229,0.01154,96391.0,96390.0,0.01342]
[1763215210530,0.02308,96391.0,96390.0,0.06052803]
[1763215210724,0.02308,96384.0,96383.0,0.05833]
[1763215211033,0.02323559,96393.0,96392.0,0.04491]
[1763215211532,0.02308,96391.0,96390.0,0.00219803]
[1763215211831,0.02308,96379.0,96378.0,0.40581]
[1763215212032,0.02308,96379.0,96378.0,0.04501]
[1763215213033,0.02308,96379.0,96378.0,0.04601]
[1763215214635,0.02308,96379.0,96378.0,0.04501]
[1763215217842,0.02308,96379.0,96369.0,0.44535731]
[1763215217843,0.3608,96388.0,96387.0,0.04501]
[1763215218237,0.00015559,96393.0,96392.0,0.04501]
[1763215219129,0.03738363,96432.0,96431.0,0.04501]
[1763215219339,0.02287897,96432.0,96431.0,0.04501]
[1763215221539,0.02287897,96432.0,96430.0,0.00219803]
[1763215221540,0.3608,96433.0,96432.0,0.04501]
[1763215223033,0.3608,96441.0,96435.0,0.05857]
[1763215223635,0.0284,96436.0,96435.0,0.05857]
[1763215223835,0.05128609,96436.0,96435.0,0.05857]
[1763215224040,0.0284,96436.0,96435.0,0.05857]
[1763215224241,0.05128275,96436.0,96435.0,0.0357]
[1763215224439,0.0234,96431.0,96430.0,0.02214]
[1763215224640,0.3842,96431.0,96430.0,0.04720803]
[1763215226940,0.0234,96425.0,96424.0,0.05857]
[1763215227541,0.3608,96431.0,96422.0,0.00015559]
[1763215227542,0.0234,96423.0,96422.0,0.00015559]
[1763215228741,0.04628579,96423.0,96422.0,0.00015559]
[1763215232651,0.04628579,96423.0,96422.0,0.02328559]
[1763215232856,0.04628579,96423.0,96422.0,0.04527559]
[1763215233049,0.02288579,96423.0,96422.0,0.04527559]
[1763215233354,0.3725,96429.0,96428.0,0.04512]
[1763215233654,0.3608,96429.0,96428.0,0.04512]
[1763215234659,0.0284,96436.0,96435.0,0.05804]
[1763215234842,0.05128696,96436.0,96435.0,0.05804]
[1763215235944,0.0234,96431.0,96430.0,0.02532803]
[1763215236147,0.0234,96431.0,96430.0,0.04731803]
[1763215239660,0.005,96436.0,96435.0,0.05804]
[1763215242651,0.3608,96445.0,96444.0,0.05804]
[1763215242860,0.3608,96453.0,96445.0,0.04512]
[1763215243258,0.005,96476.0,96465.0,0.04512]
[1763215243259,0.03738363,96466.0,96465.0,0.04512]
[1763215243554,0.03738363,96466.0,96460.0,0.00219803]
[1763215243555,0.04352,96461.0,96460.0,0.00219803]
[1763215243760,0.04352,96457.0,96456.0,0.00015551]
[1763215243954,0.06639543,96457.0,96456.0,0.00015551]
[1763215244151,0.02287543,96457.0,96456.0,0.04527551]
[1763215244359,0.05607545,96473.0,96456.0,0.04527551]
[1763215244360,0.04352,96468.0,96467.0,0.04512]
[1763215244549,0.06639872,96468.0,96467.0,0.04512]
[1763215244856,0.42719872,96468.0,96467.0,0.02313]
[1763215245157,0.04352,96457.0,96456.0,0.04527551]
[1763215245552,0.06640306,96457.0,96456.0,0.04527551]
[1763215245864,0.06640306,96457.0,96456.0,0.00015551]
[1763215247555,0.06640306,96457.0,96456.0,0.02328551]
[1763215248158,0.06640306,96457.0,96456.0,0.04527551]
[1763215248756,0.06640306,96457.0,96456.0,0.00015551]
[1763215249861,0.04352,96457.0,96456.0,0.00015551]
[1763215250065,0.06642922,96457.0,96456.0,0.00015551]
[1763215251864,0.04352,96439.0,96438.0,0.3608]
[1763215252258,0.06705149,96439.0,96438.0,0.3608]
[1763215252860,0.04352,96430.0,96429.0,0.04527551]
[1763215253068,0.06705328,96430.0,96429.0,0.00015551]
[1763215261073,0.04326,96415.0,96414.0,0.3608]
[1763215261257,0.04326,96415.0,96405.0,0.04608]
[1763215261258,0.04326,96406.0,96405.0,0.04608]
[1763215262365,0.04326,96401.0,96400.0,0.02518803]
[1763215262877,0.04326,96401.0,96400.0,0.00219803]
[1763215264069,0.04326,96401.0,96400.0,0.02518803]
[1763215264468,0.04326,96401.0,96400.0,0.04827803]
[1763215265773,0.04326,96401.0,96400.0,0.00219803]
[1763215265973,0.04326,96401.0,96400.0,0.04827803]
[1763215266776,0.04326,96401.0,96400.0,0.00219803]
[1763215266967,0.04326,96397.0,96396.0,0.04623559]
[1763215267866,0.04326,96397.0,96396.0,0.00015559]
[1763215268774,0.04326,96397.0,96396.0,0.02314559]
[1763215268967,0.04326,96397.0,96396.0,0.04623559]
[1763215269367,0.04326,96397.0,96396.0,0.02314559]
[1763215269670,0.04326,96397.0,96396.0,0.00015559]
[1763215269866,0.04326,96397.0,96396.0,0.02314559]
[1763215270573,0.02136,96397.0,96396.0,0.04623559]
[1763215270771,0.02136,96401.0,96400.0,0.06157803]
[1763215272070,0.04389559,96415.0,96414.0,0.04314]
[1763215272272,0.0454579,96415.0,96414.0,0.04314]
[1763215272479,0.02197559,96415.0,96414.0,0.04314]
[1763215273071,0.00015559,96415.0,96414.0,0.04314]
[1763215282879,0.02407352,96415.0,96414.0,0.04314]
[1763215286378,0.00015559,96415.0,96414.0,0.04314]
[1763215286574,0.10662918,96430.0,96429.0,0.04314]
[1763215286780,0.02392111,96430.0,96429.0,0.04314]
[1763215286990,1.11e-06,96430.0,96429.0,0.04314]
[1763215287176,0.03738363,96448.0,96445.0,0.04314]
[1763215287375,0.10662918,96455.0,96445.0,0.04314]
[1763215287688,0.1067846,96455.0,96445.0,0.04314]
[1763215288281,0.02207921,96446.0,96445.0,0.04314]
[1763215288589,0.00025921,96446.0,96445.0,0.04314]
[1763215293288,0.04524921,96446.0,96445.0,0.04314]
[1763215293483,0.41995921,96446.0,96445.0,0.0218]
[1763215294189,0.41995921,96446.0,96445.0,0.04471]
[1763215295090,0.04524921,96446.0,96445.0,0.04471]
[1763215295386,0.00025921,96446.0,96445.0,0.04471]
[1763215304187,0.02322921,96446.0,96445.0,0.04471]
[1763215304383,0.00025921,96446.0,96445.0,0.04471]
[1763215309996,0.03738363,96472.0,96471.0,0.04487]
[1763215310201,0.02377718,96472.0,96471.0,0.04487]
[1763215311001,0.06876718,96472.0,96471.0,0.04487]
[1763215311398,0.04499,96471.0,96470.0,0.00219803]
[1763215311602,0.06876718,96471.0,96470.0,0.00219803]
[1763215311995,0.04499,96463.0,96462.0,0.00015551]
[1763215312196,0.42956718,96463.0,96462.0,0.00015551]
[1763215313599,0.42956718,96463.0,96462.0,0.04502551]
[1763215313797,0.06876718,96463.0,96462.0,0.04502551]
[1763215318403,0.06876718,96463.0,96462.0,0.40582551]
[1763215319802,0.06876718,96463.0,96462.0,0.04502551]
[1763215321402,0.06876718,96463.0,96442.0,0.3608]
[1763215321403,0.04499,96443.0,96442.0,0.04474]
[1763215321603,0.06826917,96443.0,96442.0,0.04474]
[1763215321790,0.04499,96441.0,96440.0,0.00219803]
[1763215321994,0.04499,96441.0,96433.0,0.38315]
[1763215321995,0.04499,96434.0,96433.0,0.38315]
[1763215322196,0.04499,96434.0,96430.0,0.02454803]
[1763215322197,0.04499,96431.0,96430.0,0.02454803]
[1763215322395,0.06826917,96431.0,96430.0,0.00219803]
[1763215322890,0.04499,96423.0,96422.0,0.40554]
[1763215323092,0.04499,96423.0,96422.0,0.3608]
[1763215323301,0.06825902,96423.0,96422.0,0.3608]
[1763215323798,0.04499,96422.0,96421.0,0.00015551]
[1763215323998,0.06825902,96422.0,96421.0,0.00015551]
[1763215325304,0.06825902,96422.0,96421.0,0.04489551]
[1763215325509,0.02326902,96422.0,96421.0,0.04489551]
[1763215325698,0.40579,96436.0,96435.0,0.04474]
[1763215325899,0.42903497,96436.0,96435.0,0.04474]
[1763215326403,0.06823497,96436.0,96435.0,0.04474]
[1763215329811,0.00015524,96440.0,96439.0,0.04474]
[1763215330806,0.00015524,96440.0,96439.0,0.40554]
[1763215332107,0.40445,96462.0,96461.0,0.04424]
[1763215332416,0.4276728,96462.0,96461.0,0.04424]
[1763215333410,0.04365,96453.0,96452.0,0.04439551]
[1763215333911,0.04365,96453.0,96452.0,0.00015551]
[1763215334508,0.06687381,96453.0,96452.0,0.00015551]
[1763215335210,0.06687381,96453.0,96452.0,0.02170551]
[1763215335512,0.06687381,96453.0,96452.0,0.04439551]
[1763215335711,0.06687381,96453.0,96452.0,0.00015551]
[1763215335911,0.06687381,96453.0,96452.0,0.02170551]
[1763215336218,0.03754,96453.0,96452.0,0.02170551]
[1763215336816,0.03754,96453.0,96452.0,0.00015551]
[1763215337013,0.03754,96453.0,96452.0,0.04439551]
[1763215338513,0.39834,96453.0,96452.0,0.00015551]
[1763215341015,0.39834,96453.0,96430.0,0.3608]
[1763215341016,0.03754,96433.0,96432.0,0.05774]
[1763215343716,0.03769551,96442.0,96441.0,0.04424]
[1763215345719,0.00015551,96442.0,96441.0,0.04424]
[1763215346612,0.03769551,96442.0,96441.0,0.04424]
[1763215347719,0.01892551,96442.0,96441.0,0.04424]
[1763215348121,0.04287696,96442.0,96441.0,0.04424]
[1763215348917,0.02410696,96442.0,96441.0,0.04424]
[1763215349218,0.03754,96441.0,96440.0,0.00219803]
[1763215349411,0.03754,96433.0,96432.0,0.05776]
[1763215349613,0.06149145,96433.0,96432.0,0.05776]
[1763215349810,0.03754,96431.0,96430.0,0.00219803]
[1763215350017,0.06149145,96431.0,96430.0,0.04645803]
[1763215354825,0.06149145,96431.0,96430.0,0.00219803]
[1763215355419,0.06149145,96431.0,96430.0,0.02407803]
[1763215355616,0.06149145,96431.0,96430.0,0.04645803]
[1763215358831,0.06149145,96431.0,96430.0,0.02407803]
[1763215359630,0.06149145,96431.0,96430.0,0.04645803]
[1763215361931,0.03754,96425.0,96424.0,0.05708]
[1763215362236,0.03754,96424.0,96417.0,0.3608]
[1763215362426,0.06149145,96424.0,96417.0,0.3608]
[1763215362628,0.06149145,96424.0,96423.0,0.04441551]
[1763215375239,0.06149145,96424.0,96423.0,0.00015551]
[1763215375745,0.06149145,96424.0,96423.0,0.02203551]
[1763215376749,0.06149145,96424.0,96423.0,0.00015551]
[1763215377433,0.06149145,96424.0,96423.0,0.04441551]
[1763215379539,0.0988435,96424.0,96423.0,0.04441551]
[1763215380244,0.04272145,96424.0,96423.0,0.04441551]
[1763215380450,0.02395145,96424.0,96423.0,0.04441551]
[1763215380648,0.05612205,96432.0,96431.0,0.04299]
[1763215380843,0.09875073,96432.0,96431.0,0.04299]
[1763215381046,0.06139868,96432.0,96431.0,0.04299]
[1763215382741,0.09874866,96432.0,96431.0,0.04299]
[1763215382942,0.06139868,96432.0,96431.0,0.04299]
[1763215386760,0.03754,96424.0,96423.0,0.00015551]
[1763215387053,0.03754,96409.0,96408.0,0.05631]
[1763215387256,0.06139868,96409.0,96408.0,0.05631]
[1763215387746,0.06139868,96409.0,96406.0,0.04324932]
[1763215387747,0.03754,96407.0,96406.0,0.04324932]
[1763215387948,0.06139868,96407.0,96406.0,0.04324932]
[1763215388141,0.07187433,96407.0,96406.0,0.00025932]
[1763215388351,0.06139868,96407.0,96406.0,0.00025932]
[1763215388650,0.06139868,96407.0,96406.0,0.02203932]
[1763215388856,0.07194515,96407.0,96406.0,0.02203932]
[1763215389058,0.06139868,96407.0,96406.0,0.04324932]
[1763215390049,0.06139868,96407.0,96406.0,0.02203932]
[1763215390261,0.07158759,96407.0,96406.0,0.02203932]
[1763215390452,0.06139868,96407.0,96406.0,0.04324932]
[1763215396269,0.02385868,96407.0,96406.0,0.40404932]
[1763215396557,0.36095551,96416.0,96415.0,0.04313]
[1763215396958,0.00015551,96416.0,96415.0,0.40393]
[1763215397357,0.04459,96430.0,96429.0,0.04313]
[1763215399866,0.02316,96430.0,96429.0,0.04313]
[1763215400271,0.04459,96430.0,96429.0,0.04313]
[1763215400667,0.30389099,96439.0,96425.0,0.01379]
[1763215400668,0.04474551,96439.0,96438.0,0.04313]
[1763215402969,0.00015551,96439.0,96438.0,0.04313]
[1763215403163,0.04474551,96439.0,96438.0,0.04313]
[1763215404271,0.40554551,96439.0,96438.0,0.04313]
[1763215404471,0.04474551,96439.0,96438.0,0.04313]
[1763215408585,0.06807966,96439.0,96438.0,0.04313]
[1763215410580,0.06807966,96439.0,96438.0,0.05663]
[1763215411283,0.02348966,96439.0,96438.0,0.05663]
[1763215411487,0.03734999,96455.0,96453.0,0.05348]
[1763215411682,0.03734999,96455.0,96446.0,0.00957]
[1763215411683,0.04314,96452.0,96451.0,0.40471]
[1763215412089,0.04314,96451.0,96450.0,0.00219803]
[1763215412388,0.04314,96439.0,96438.0,0.04391]
[1763215423492,0.06638186,96439.0,96438.0,0.04391]
[1763215432895,0.04314,96430.0,96429.0,0.04406551]
[1763215433095,0.06638186,96430.0,96429.0,0.04406551]
[1763215433491,0.10373185,96430.0,96429.0,0.02181551]
[1763215433896,0.10373185,96430.0,96429.0,0.04406551]
[1763215434299,0.06638186,96430.0,96429.0,0.04406551]
[1763215434703,0.06638186,96430.0,96429.0,0.02181551]
[1763215435200,0.04314,96419.0,96418.0,0.41821]
[1763215435387,0.06638186,96419.0,96418.0,0.40471]
[1763215437694,0.06604769,96419.0,96418.0,0.40471]
[1763215440807,0.02290769,96419.0,96418.0,0.40471]
[1763215441301,0.04530769,96419.0,96418.0,0.40471]
[1763215441996,0.06655769,96419.0,96418.0,0.40471]
[1763215443493,0.04365,96410.0,96409.0,0.40587551]
[1763215443703,0.0665472,96410.0,96409.0,0.40587551]
[1763215445492,0.0665472,96410.0,96409.0,0.04507551]
[1763215446105,0.0665472,96410.0,96409.0,0.00015551]
[1763215447001,0.04365,96407.0,96406.0,0.00025932]
[1763215447198,0.4273472,96407.0,96406.0,0.00025932]
[1763215447604,0.4273472,96407.0,96406.0,0.02302932]
[1763215448199,0.4273472,96407.0,96406.0,0.04517932]
[1763215450702,0.0665472,96407.0,96406.0,0.04517932]
[1763215455601,0.0669672,96407.0,96406.0,0.04517932]
[1763215459306,0.0228972,96407.0,96406.0,0.40597932]
[1763215459502,0.12408802,96420.0,96419.0,0.04384]
[1763215459718,0.06617403,96420.0,96419.0,0.04384]
[1763215459913,0.02284403,96420.0,96419.0,0.04384]
[1763215460410,0.06617403,96420.0,96419.0,0.04384]
[1763215461911,0.02284403,96420.0,96419.0,0.04384]
[1763215462406,0.00015551,96428.0,96427.0,0.04384]
[1763215462614,0.00015551,96428.0,96427.0,0.40464]
[1763215467315,0.02181551,96428.0,96427.0,0.40464]
[1763215467704,0.00015551,96428.0,96427.0,0.40464]
[1763215470017,0.04483551,96428.0,96427.0,0.40464]
[1763215470215,0.04483551,96428.0,96427.0,0.04384]
[1763215474523,0.06732978,96428.0,96427.0,0.04384]
[1763215475416,0.04562,96419.0,96418.0,0.40549551]
[1763215475615,0.06811427,96419.0,96418.0,0.40549551]
[1763215480220,0.06811427,96419.0,96418.0,0.04469551]
[1763215483321,0.06811427,96419.0,96418.0,0.00015551]
[1763215483718,0.04562,96407.0,96406.0,0.04479932]
[1763215483918,0.06811427,96407.0,96406.0,0.04479932]
[1763215485725,0.06811427,96407.0,96406.0,0.00025932]
[1763215486627,0.06811427,96407.0,96397.0,0.00015551]
[1763215486628,0.04562,96398.0,96397.0,0.00015551]
[1763215486825,0.42891427,96398.0,96397.0,0.00015551]
[1763215487035,0.04562,96386.0,96385.0,0.04463962]
[1763215487236,0.06811427,96386.0,96385.0,0.04463962]
[1763215490235,0.04562,96386.0,96385.0,0.04463962]
[1763215492633,0.04562,96386.0,96385.0,9.962e-05]
[1763215492634,0.06822689,96386.0,96385.0,9.962e-05]
[1763215493736,0.06822689,96386.0,96385.0,0.04463962]
[1763215501238,0.04562,96386.0,96385.0,0.04463962]
[1763215502443,0.40541,96399.0,96398.0,0.04537]
[1763215502742,0.38340481,96399.0,96398.0,0.04537]
[1763215503238,0.02260481,96399.0,96398.0,0.04537]
[1763215503440,0.12119136,96408.0,96406.0,0.04537]
[1763215503642,0.02276206,96407.0,96406.0,0.04537]
[1763215503941,0.02276206,96407.0,96406.0,0.40617]
[1763215507136,0.04425206,96407.0,96406.0,0.40617]
[1763215508338,0.06737206,96407.0,96406.0,0.40617]
[1763215514644,0.02276206,96407.0,96406.0,0.40617]
[1763215515946,2.06e-06,96407.0,96406.0,0.40617]
[1763215516651,0.12119136,96416.0,96415.0,0.04437]
[1763215516850,0.04423,96420.0,96419.0,0.04437]
[1763215518752,0.05696,96420.0,96419.0,0.04437]
[1763215525552,0.04423,96407.0,96406.0,0.40517]
[1763215525752,0.01273,96420.0,96410.0,0.00219803]
[1763215525753,0.12119136,96416.0,96410.0,0.00219803]
[1763215525958,0.02164,96416.0,96415.0,0.04437]
[1763215526252,0.04423,96416.0,96415.0,0.04437]
[1763215526453,0.02164,96423.0,96414.0,0.37367]
[1763215526653,0.02164,96423.0,96422.0,0.04437]
[1763215526861,0.04423,96423.0,96422.0,0.04437]
[1763215540761,0.02164,96423.0,96422.0,0.04437]
[1763215541076,0.0433756,96425.0,96424.0,0.04447]
[1763215541269,0.0433756,96425.0,96424.0,0.40527]
[1763215544976,0.0001556,96425.0,96424.0,0.40527]
[1763215545274,0.0001556,96425.0,96424.0,0.04447]
[1763215545774,0.0218656,96425.0,96424.0,0.04447]
[1763215546579,0.0001556,96425.0,96424.0,0.40527]
[1763215548879,0.0001556,96425.0,96424.0,0.44224048]
[1763215549378,0.0001556,96425.0,96424.0,0.40527]
[1763215549975,0.04322,96440.0,96439.0,0.04447]
[1763215550177,0.02171,96440.0,96439.0,0.04447]
[1763215550581,0.04322,96440.0,96439.0,0.04447]
[1763215551075,0.0001556,96449.0,96440.0,0.00219803]
[1763215551382,0.04347921,96446.0,96445.0,0.04447]
[1763215552275,0.06652429,96446.0,96445.0,0.04447]
[1763215554281,0.02330429,96446.0,96445.0,0.05095]
[1763215559890,0.00025921,96446.0,96445.0,0.05095]
[1763215560782,0.0001556,96449.0,96448.0,0.0451]
[1763215561182,0.32847825,96480.0,96471.0,0.0451]
[1763215561183,0.08077825,96480.0,96471.0,0.0451]
[1763215561379,0.04421,96472.0,96471.0,0.0451]
[1763215561579,0.06721538,96472.0,96471.0,0.0451]
[1763215562589,0.04395,96471.0,96470.0,0.00219803]
[1763215562788,0.06695538,96471.0,96470.0,0.00219803]
[1763215563490,0.04395,96463.0,96462.0,0.00015551]
[1763215563689,0.42775538,96463.0,96462.0,0.00015551]
[1763215568892,0.06695538,96463.0,96462.0,0.02319551]
[1763215569094,0.06695538,96463.0,96462.0,0.04525551]
[1763215569895,0.04506538,96463.0,96462.0,0.40605551]
[1763215570199,0.02300538,96463.0,96462.0,0.41868551]
[1763215570704,0.12472825,96472.0,96471.0,0.0451]
[1763215571004,0.06693931,96472.0,96471.0,0.0451]
[1763215571397,0.02298931,96472.0,96471.0,0.0451]
[1763215572400,0.04541931,96472.0,96471.0,0.0451]
[1763215572694,0.06836931,96472.0,96471.0,0.02304]
[1763215572908,0.06836931,96472.0,96471.0,0.04528]
[1763215581504,0.06836931,96472.0,96470.0,0.00219803]
[1763215581505,0.04538,96471.0,96470.0,0.00219803]
[1763215581711,0.06836931,96471.0,96470.0,0.00219803]
[1763215582202,0.04538,96463.0,96462.0,0.40451551]
[1763215582397,0.06836931,96463.0,96462.0,0.40451551]
[1763215583501,0.06836931,96463.0,96462.0,0.00015551]
[1763215584810,0.06836931,96463.0,96462.0,0.02147551]
[1763215585208,0.06836931,96463.0,96462.0,0.04371551]
[1763215586414,0.06836931,96463.0,96462.0,0.00015551]
[1763215591408,0.06836931,96463.0,96462.0,0.04576551]
[1763215592709,0.04541931,96463.0,96462.0,0.04576551]
[1763215592912,0.06643931,96463.0,96462.0,0.04576551]
[1763215597803,0.04541931,96463.0,96462.0,0.04576551]
[1763215598002,0.02298931,96463.0,96462.0,0.04576551]
[1763215598212,0.06613859,96473.0,96472.0,0.04561]
[1763215599212,0.06613859,96473.0,96471.0,0.3608]
[1763215599213,0.04299,96472.0,96471.0,0.3608]
[1763215599414,0.06613859,96472.0,96471.0,0.38388]
[1763215599710,0.06613859,96472.0,96471.0,0.3608]
[1763215600108,0.06613859,96472.0,96471.0,0.40641]
[1763215601916,0.06613859,96472.0,96471.0,0.3608]
[1763215603217,0.04299,96471.0,96470.0,0.00219803]
[1763215603411,0.04299,96463.0,96462.0,0.02323551]
[1763215603611,0.06613859,96463.0,96462.0,0.02323551]
[1763215604112,0.06613859,96463.0,96462.0,0.04576551]
[1763215606113,0.06613859,96463.0,96462.0,0.02323551]
[1763215606314,0.06613859,96463.0,96462.0,0.00015551]
[1763215606506,0.06613859,96463.0,96462.0,0.02323551]
[1763215606711,0.06613859,96463.0,96462.0,0.04576551]
[1763215608514,0.02314859,96463.0,96462.0,0.04576551]
[1763215608720,0.06614926,96471.0,96470.0,0.04561]
[1763215608926,0.06614926,96471.0,96470.0,0.40860803]
[1763215611913,0.02315926,96471.0,96470.0,0.40860803]
[1763215612720,0.04512926,96471.0,96470.0,0.40860803]
[1763215614920,0.02315926,96471.0,96470.0,0.40860803]
[1763215615120,0.06614926,96471.0,96470.0,0.40860803]
[1763215616819,0.02315926,96471.0,96470.0,0.40860803]
[1763215618127,0.04512926,96471.0,96470.0,0.40860803]
[1763215619519,0.02315926,96471.0,96470.0,0.40860803]
[1763215619722,0.04474926,96471.0,96470.0,0.40860803]
[1763215621523,0.06636926,96471.0,96470.0,0.40860803]
[1763215628124,0.06636926,96471.0,96470.0,0.3608]
[1763215628826,0.06636926,96471.0,96470.0,0.36299803]
[1763215629029,0.06636926,96471.0,96470.0,0.38579803]
[1763215629922,0.06636926,96471.0,96470.0,0.40830803]
[1763215630129,0.06636926,96471.0,96470.0,0.00219803]
[1763215631437,0.06636926,96471.0,96470.0,0.02499803]
[1763215632438,0.06636926,96471.0,96470.0,0.04750803]
[1763215632937,0.02315926,96471.0,96470.0,0.05911803]
[1763215635432,0.005,96476.0,96475.0,0.0453]
[1763215639550,0.04954,96476.0,96475.0,0.0453]
[1763215641454,0.04454,96471.0,96470.0,0.04257803]
[1763215646064,0.04454,96471.0,96470.0,0.00219803]
[1763215647352,0.06800103,96471.0,96470.0,0.00219803]
[1763215647552,0.04454,96463.0,96462.0,0.02034551]
[1763215647758,0.06800103,96463.0,96462.0,0.02034551]
[1763215648951,0.06800103,96463.0,96462.0,0.00015551]
[1763215650459,0.02932,96438.0,96437.0,0.05560202]
[1763215650650,0.02932,96438.0,96428.0,0.04294]
[1763215650651,0.02932,96429.0,96428.0,0.04294]
[1763215650856,0.02932,96429.0,96420.0,0.01512803]
[1763215650857,0.02932,96421.0,96420.0,0.05806803]
[1763215651064,0.4135831,96421.0,96420.0,0.05806803]
[1763215651260,0.4135831,96421.0,96420.0,0.05587]
[1763215651463,0.02932,96415.0,96414.0,0.05466]
[1763215651663,0.05275505,96415.0,96414.0,0.05466]
[1763215651959,0.05275505,96415.0,96411.0,0.02192551]
[1763215651960,0.02932,96412.0,96411.0,0.02192551]
[1763215652157,0.39012,96412.0,96411.0,0.02192551]
[1763215652456,0.41352665,96412.0,96411.0,0.04309551]
[1763215653056,0.39012,96412.0,96411.0,0.04309551]
[1763215653272,0.39012,96412.0,96411.0,0.02192551]
[1763215653460,0.39012,96412.0,96411.0,0.00015551]
[1763215654063,0.39112,96412.0,96411.0,0.00015551]
[1763215654558,0.39112,96412.0,96411.0,0.04309551]
[1763215655463,0.39212,96412.0,96411.0,0.04309551]
[1763215657666,0.39112,96412.0,96411.0,0.04309551]
[1763215657863,0.39212,96412.0,96411.0,0.04309551]
[1763215658060,0.3628,96412.0,96411.0,0.04309551]
[1763215658366,0.3628,96412.0,96411.0,0.02192551]
[1763215658367,0.39212,96412.0,96411.0,0.02192551]
[1763215658568,0.39212,96412.0,96411.0,0.00015551]
[1763215659460,0.02932,96407.0,96406.0,0.02202932]
[1763215660467,0.02932,96407.0,96406.0,0.00025932]
[1763215661162,0.03032,96407.0,96406.0,0.00025932]
[1763215661465,0.03132,96407.0,96406.0,0.00025932]
[1763215662467,0.02932,96398.0,96397.0,0.00015559]
[1763215664572,0.03032,96398.0,96397.0,0.00015559]
[1763215664866,0.002,96398.0,96397.0,0.05602559]
[1763215665772,0.03132,96398.0,96397.0,0.00015559]
[1763215666072,0.03132,96398.0,96397.0,0.05602559]
[1763215666867,0.001,96398.0,96397.0,0.05602559]
[1763215667264,0.03032,96398.0,96397.0,0.05602559]
[1763215667471,0.02932,96398.0,96397.0,0.05602559]
[1763215667660,0.03032,96398.0,96397.0,0.05602559]
[1763215668773,0.03132,96398.0,96397.0,0.05602559]
[1763215669673,0.03032,96398.0,96397.0,0.05602559]
[1763215670067,0.02932,96398.0,96397.0,0.05602559]
[1763215671069,0.03032,96398.0,96397.0,0.05602559]
[1763215671276,0.03132,96398.0,96397.0,0.05602559]
[1763215674769,0.01666,96398.0,96397.0,0.05602559]
[1763215674973,0.002,96398.0,96397.0,0.05602559]